{"text_format":"1","workbook":"xlsx","n_sheets":3,"sheets":["Élite240","Papier","Pilotage"],"not_rendered":{"charts":0,"images":0,"macros":1,"external_links":0,"defined_names":22,"comments":0,"pivot_tables":0},"unopened":[],"bounds":{"document_bytes":16777216,"sheet_cells":100000,"rows_first":2000,"rows_last":500,"rows_between":2000,"halvings":0,"cell_chars":16384,"cell_head_chars":4096},"cells_cut":0,"cells_raw":0,"read":"whole","date_system":"1900"}

{"sheet":"Élite240","index":0,"n_rows":32,"n_cols":18,"rows_kept":32,"cut":false,"hidden":false,"merged":[[0,17,0,19],[3,17,3,18]]}
["RANG","JOUEUR","TRS","PJ","IPS","FP","% VIC","DIFF","ERO","EC","TVP","Équipe",null,null,"Carol Audet","$B$3",null,"Indiquez votre nom dans la case Personne sondée.\nDéléguez cinq joueurs qui ne font pas partie de votre équipe à qui vous feriez confiance pour faire partie du comité de cotation. \n\nTrier les joueurs du plus fort (1er rang) au plus faible (dernier rang).\n- Sélectionnez un joueur dans la liste.\n- Pour le monter, utilisez la combinaison de touche CTRL+H ou bouton +.\n- Pour le descendre, utilisez la combinaison de touche CTRL+B ou bouton -."]
[null,1,2,3,4,5,6,7,8,9,10,11]
[1,"Carol Audet",{"$f":"VLOOKUP($B3,PIL_ELITE_STAT,C$2,FALSE)","v":20},72,682,"7.49","62.5",115,12,9,14,"T.S 2.0"]
[2,"Denis Côté",{"$f":"VLOOKUP($B4,PIL_ELITE_STAT,C$2,FALSE)","v":20},72,640,"6.84","59.7",98,10,6,14,"C'est Ça",null,null,"Personne sondée",null,null,"Proposition de comité"]
[3,"Sébastien Côté",20,72,632,"7.07","54.2",41,10,12,12,"Les Casseux de Fun",null,null,null,null,null,"Joueur #1"]
[4,"Brandon Beaulieu",30,64,557,"6.19","53.1",7,7,6,10,"New Road Warriors",null,null,null,null,null,"Joueur #2"]
[5,"Pierre Joncas",30,72,548,"6.29","55.6",48,9,3,9,"C'est Ça",null,null,null,null,null,"Joueur #3"]
[6,"Jean Garneau",40,64,496,"5.86","46.9",-14,6,5,6,"Devil's",null,null,null,null,null,"Joueur #4"]
[7,"Marco Pascal",40,64,507,"5.92","48.4",-32,4,8,5,"Nous Autres",null,null,null,null,null,"Joueur #5"]
[8,"Pierre Côté",40,64,568,"6.12","53.1",46,7,4,10,"T.S 2.0"]
[9,"Steve Boilard",40,72,587,"6.50","58.3",82,9,4,11,"Devil's"]
[10,"Alexandre Cyr",50,72,594,"6.60","56.9",77,10,5,10,"Les Casseux de Fun"]
[11,"Dave Richard",50,64,629,"7.09","59.4",61,10,7,11,"Devil's"]
[12,"Denis Fournier",50,72,505,"5.71","45.8",-24,8,5,8,"New Road Warriors"]
[13,"Donald Cyr",50,72,657,"7.32","62.5",153,15,4,16,"Les Casseux de Fun"]
[14,"Normand Paquin",50,72,585,"6.43","50.0",20,9,9,10,"T.S 2.0"]
[15,"Pierre Bérubé",50,72,448,"5.48","41.7",-78,5,7,5,"New Road Warriors"]
[16,"Simon Robitaille (50)",50,72,497,"5.85","38.9",-111,6,14,8,"Nous Autres"]
[17,"Yanick Simard",50,72,562,"6.33","52.8",8,5,9,7,"Nous Autres"]
[18,"David Gosselin",60,64,604,"6.69","54.7",28,8,8,8,"Les Casseux de Fun"]
[19,"Jean-Louis St-Onge",60,72,492,"5.80","43.1",-68,5,11,5,"New Road Warriors"]
[20,"Martin St-Onge",60,64,513,"5.91","46.9",-18,5,7,5,"Nous Autres"]
[21,"Pierre Lamontagne",60,72,491,"5.80","47.2",-43,5,7,6,"Nous Autres"]
[22,"Rénald Labonte",60,72,363,"4.57","31.9",-152,3,5,3,"Devil's"]
[23,"Stéphane Frenette",60,72,541,"6.10","51.4",-28,4,10,6,"C'est Ça"]
[24,"Yves Boudreault",60,72,551,"6.32","48.6",-40,9,11,10,"C'est Ça"]
[25,"Yves Toulouse",60,64,660,"7.28","56.3",87,14,6,18,"T.S 2.0"]
[26,"André Lessard",70,64,529,"6.20","51.6",7,6,6,6,"Les Casseux de Fun"]
[27,"Karine Beaulieu",70,64,482,"5.84","43.8",{"$f":"VLOOKUP($B29,PIL_ELITE_STAT,H$2,FALSE)","v":-63},5,9,5,"C'est Ça"]
[28,"Rita Fortin",{"$f":"VLOOKUP($B30,PIL_ELITE_STAT,C$2,FALSE)","v":70},72,488,"5.65","48.6",-18,4,4,7,"Devil's"]
[29,"Serge Doucet",70,72,505,"5.83","44.4",-50,6,9,7,"New Road Warriors"]
[30,"Simon Marcotte",{"$f":"VLOOKUP($B32,PIL_ELITE_STAT,C$2,FALSE)","v":70},72,386,"4.77","36.1",-105,2,4,3,"T.S 2.0"]

{"sheet":"Papier","index":1,"n_rows":31,"n_cols":6,"rows_kept":31,"cut":false,"hidden":false,"merged":[[2,1,6,2]]}
[null,"Indiquez votre nom dans la case Personne sondée.",null,null,"Joueur","Rang 1 à 30"]
[null,null,null,null,"Carol Audet"]
[null,"Déléguez cinq joueurs qui ne font pas partie de votre équipe à qui vous feriez confiance pour faire partie du comité de cotation. ",null,null,"Denis Côté"]
[null,null,null,null,"Sébastien Côté"]
[null,null,null,null,"Brandon Beaulieu"]
[null,null,null,null,"Pierre Joncas"]
[null,null,null,null,"Jean Garneau"]
[null,"Personne sondée",null,null,"Marco Pascal"]
[null,null,null,null,"Pierre Côté"]
[null,null,null,null,"Steve Boilard"]
[null,"Joueur #1",null,null,"Alexandre Cyr"]
[null,null,null,null,"Dave Richard"]
[null,"Joueur #2",null,null,"Denis Fournier"]
[null,null,null,null,"Donald Cyr"]
[null,"Joueur #3",null,null,"Normand Paquin"]
[null,null,null,null,"Pierre Bérubé"]
[null,"Joueur #4",null,null,"Simon Robitaille (50)"]
[null,null,null,null,"Yanick Simard"]
[null,"Joueur #5",null,null,"David Gosselin"]
[null,null,null,null,"Jean-Louis St-Onge"]
[null,null,null,null,"Martin St-Onge"]
[null,null,null,null,"Pierre Lamontagne"]
[null,null,null,null,"Rénald Labonte"]
[null,null,null,null,"Stéphane Frenette"]
[null,null,null,null,"Yves Boudreault"]
[null,null,null,null,"Yves Toulouse"]
[null,null,null,null,"André Lessard"]
[null,null,null,null,"Karine Beaulieu"]
[null,null,null,null,"Rita Fortin"]
[null,null,null,null,"Serge Doucet"]
[null,null,null,null,"Simon Marcotte"]

{"sheet":"Pilotage","index":2,"n_rows":68,"n_cols":14,"rows_kept":68,"cut":false,"hidden":true,"merged":[[3,0,3,11]]}
["SheetChange",null,null,null,null,"Version",null,null,null,null,"Fichier vierge",null,null,"Nom Fichier"]
[true,null,null,null,null,14,null,null,null,null,true,null,null,"Cotation_VIERGE_Elite240"]
[]
["ÉLITE"]
["Joueur","TRS","PJ","IPS","FP","% VIC","DIFF","ERO","EC","TVP","Équipe","Statut"]
["Carol Audet",20,72,682,"7.49","62.5",115,12,9,14,"T.S 2.0",{"$f":"IF(K6=\"Substitut\",\"S\",\"R\")","v":"R"}]
["Denis Côté",20,72,640,"6.84","59.7",98,10,6,14,"C'est Ça","R"]
["Sébastien Côté",20,72,632,"7.07","54.2",41,10,12,12,"Les Casseux de Fun","R"]
["Brandon Beaulieu",30,64,557,"6.19","53.1",7,7,6,10,"New Road Warriors","R"]
["Pierre Joncas",30,72,548,"6.29","55.6",48,9,3,9,"C'est Ça","R"]
["Jean Garneau",40,64,496,"5.86","46.9",-14,6,5,6,"Devil's","R"]
["Marco Pascal",40,64,507,"5.92","48.4",-32,4,8,5,"Nous Autres","R"]
["Pierre Côté",40,64,568,"6.12","53.1",46,7,4,10,"T.S 2.0","R"]
["Steve Boilard",40,72,587,"6.50","58.3",82,9,4,11,"Devil's","R"]
["Alexandre Cyr",50,72,594,"6.60","56.9",77,10,5,10,"Les Casseux de Fun","R"]
["Dave Richard",50,64,629,"7.09","59.4",61,10,7,11,"Devil's","R"]
["Denis Fournier",50,72,505,"5.71","45.8",-24,8,5,8,"New Road Warriors","R"]
["Donald Cyr",50,72,657,"7.32","62.5",153,15,4,16,"Les Casseux de Fun","R"]
["Normand Paquin",50,72,585,"6.43","50.0",20,9,9,10,"T.S 2.0","R"]
["Pierre Bérubé",50,72,448,"5.48","41.7",-78,5,7,5,"New Road Warriors","R"]
["Simon Robitaille (50)",50,72,497,"5.85","38.9",-111,6,14,8,"Nous Autres","R"]
["Yanick Simard",50,72,562,"6.33","52.8",8,5,9,7,"Nous Autres","R"]
["David Gosselin",60,64,604,"6.69","54.7",28,8,8,8,"Les Casseux de Fun","R"]
["Jean-Louis St-Onge",60,72,492,"5.80","43.1",-68,5,11,5,"New Road Warriors","R"]
["Martin St-Onge",60,64,513,"5.91","46.9",-18,5,7,5,"Nous Autres","R"]
["Pierre Lamontagne",60,72,491,"5.80","47.2",-43,5,7,6,"Nous Autres","R"]
["Rénald Labonte",60,72,363,"4.57","31.9",-152,3,5,3,"Devil's","R"]
["Stéphane Frenette",60,72,541,"6.10","51.4",-28,4,10,6,"C'est Ça","R"]
["Yves Boudreault",60,72,551,"6.32","48.6",-40,9,11,10,"C'est Ça","R"]
["Yves Toulouse",60,64,660,"7.28","56.3",87,14,6,18,"T.S 2.0","R"]
["André Lessard",70,64,529,"6.20","51.6",7,6,6,6,"Les Casseux de Fun","R"]
["Karine Beaulieu",70,64,482,"5.84","43.8",-63,5,9,5,"C'est Ça","R"]
["Rita Fortin",70,72,488,"5.65","48.6",-18,4,4,7,"Devil's","R"]
["Serge Doucet",70,72,505,"5.83","44.4",-50,6,9,7,"New Road Warriors","R"]
["Simon Marcotte",70,72,386,"4.77","36.1",-105,2,4,3,"T.S 2.0","R"]
[]
[]
["Tous - Alpha",null,null,null,null,null,null,null,null,null,"Réguliers - Alpha"]
["Alexandre Cyr",null,null,null,null,null,null,null,null,null,"Alexandre Cyr"]
["André Lessard",null,null,null,null,null,null,null,null,null,"André Lessard"]
["Brandon Beaulieu",null,null,null,null,null,null,null,null,null,"Brandon Beaulieu"]
["Carol Audet",null,null,null,null,null,null,null,null,null,"Carol Audet"]
["Dave Richard",null,null,null,null,null,null,null,null,null,"Dave Richard"]
["David Gosselin",null,null,null,null,null,null,null,null,null,"David Gosselin"]
["Denis Côté",null,null,null,null,null,null,null,null,null,"Denis Côté"]
["Denis Fournier",null,null,null,null,null,null,null,null,null,"Denis Fournier"]
["Donald Cyr",null,null,null,null,null,null,null,null,null,"Donald Cyr"]
["Jean Garneau",null,null,null,null,null,null,null,null,null,"Jean Garneau"]
["Jean-Louis St-Onge",null,null,null,null,null,null,null,null,null,"Jean-Louis St-Onge"]
["Karine Beaulieu",null,null,null,null,null,null,null,null,null,"Karine Beaulieu"]
["Marco Pascal",null,null,null,null,null,null,null,null,null,"Marco Pascal"]
["Martin St-Onge",null,null,null,null,null,null,null,null,null,"Martin St-Onge"]
["Normand Paquin",null,null,null,null,null,null,null,null,null,"Normand Paquin"]
["Pierre Bérubé",null,null,null,null,null,null,null,null,null,"Pierre Bérubé"]
["Pierre Côté",null,null,null,null,null,null,null,null,null,"Pierre Côté"]
["Pierre Joncas",null,null,null,null,null,null,null,null,null,"Pierre Joncas"]
["Pierre Lamontagne",null,null,null,null,null,null,null,null,null,"Pierre Lamontagne"]
["Rénald Labonte",null,null,null,null,null,null,null,null,null,"Rénald Labonte"]
["Rita Fortin",null,null,null,null,null,null,null,null,null,"Rita Fortin"]
["Sébastien Côté",null,null,null,null,null,null,null,null,null,"Sébastien Côté"]
["Serge Doucet",null,null,null,null,null,null,null,null,null,"Serge Doucet"]
["Simon Marcotte",null,null,null,null,null,null,null,null,null,"Simon Marcotte"]
["Simon Robitaille (50)",null,null,null,null,null,null,null,null,null,"Simon Robitaille (50)"]
["Stéphane Frenette",null,null,null,null,null,null,null,null,null,"Stéphane Frenette"]
["Steve Boilard",null,null,null,null,null,null,null,null,null,"Steve Boilard"]
["Yanick Simard",null,null,null,null,null,null,null,null,null,"Yanick Simard"]
["Yves Boudreault",null,null,null,null,null,null,null,null,null,"Yves Boudreault"]
["Yves Toulouse",null,null,null,null,null,null,null,null,null,"Yves Toulouse"]